bitfinex/quotes_ETHUSD_20210701
["timestamp","ask_amount","ask_price","bid_price","bid_amount"]
[1625173885723,25.15,2110.4,2109.7,3.73e-06]
[1625173885795,3.6,2109.8,2109.7,3.73e-06]
[1625173885892,21.805,2109.8,2109.7,3.73e-06]
[1625173886053,26.965,2109.8,2109.1,3.73e-06]
[1625173886144,11.965,2109.8,2109.1,3.73e-06]
[1625173886244,3.6,2109.3,2109.1,3.73e-06]
[1625173886390,3.75,2109.2,2109.1,3.73e-06]
[1625173886641,15.8719,2109.2,2109.1,3.73e-06]
[1625173887239,16.0319,2109.2,2109.1,3.73e-06]
[1625173887693,10.8619,2109.2,2109.1,3.73e-06]
[1625173887797,9.48253,2109.3,2109.1,3.73e-06]
[1625173887931,1.4621,2109.4,2109.1,3.73e-06]
[1625173888180,20.7437,2109.8,2109.1,3.73e-06]
[1625173888282,0.15,2110.0,2109.1,3.73e-06]
[1625173888380,15.65042,2110.3,2109.1,3.73e-06]
[1625173888381,0.15,2109.9,2109.1,3.73e-06]
[1625173888529,3.1297,2109.9,2109.1,3.73e-06]
[1625173888630,15.15,2109.8,2109.1,3.73e-06]
[1625173888783,15.35,2109.8,2109.1,3.73e-06]
[1625173888980,28.36,2109.8,2109.1,3.73e-06]
[1625173889328,0.2,2109.7,2109.1,3.73e-06]
[1625173889431,7.10908,2109.6,2109.1,3.73e-06]
[1625173889529,12.26908,2109.6,2109.1,3.73e-06]
[1625173889679,27.26908,2109.6,2109.1,3.73e-06]
[1625173889931,30.2,2109.4,2108.1,0.16013069]
[1625173890031,39.079,2109.4,2108.1,0.16013069]
[1625173890192,0.2,2109.3,2108.1,0.16013069]
[1625173890367,0.21706859,2109.3,2108.1,0.16013069]
[1625173890467,0.15,2109.2,2108.1,0.16013069]
[1625173890566,0.35,2109.2,2108.1,0.16013069]
[1625173890717,12.06707,2108.8,2108.1,0.16013069]
[1625173890920,0.2,2108.7,2108.1,0.16013069]
[1625173891567,30.2,2108.6,2107.5,0.01006696]
[1625173891659,0.04422571,2108.5,2107.5,0.01006696]
[1625173891759,7.11438,2108.1,2107.5,0.01006696]
[1625173891908,11.23075215,2108.1,2107.5,0.01006696]
[1625173892056,11.22168,2108.1,2107.5,0.01006696]
[1625173892160,11.22168,2108.1,2107.4,0.01006696]
[1625173892455,15.1,2108.0,2107.3,4.17802106]
[1625173892538,11.22168,2108.1,2107.3,4.17802106]
[1625173892636,8.41347623,2108.1,2107.3,4.17802106]
[1625173892888,4.1073,2108.1,2107.3,4.17802106]
[1625173893089,0.06322654,2108.7,2107.3,4.17802106]
[1625173893090,0.06322654,2108.7,2107.4,4.52617798]
[1625173893294,0.06322654,2108.7,2107.5,15.0]
[1625173893490,0.06322654,2108.7,2107.6,0.15]
[1625173893692,0.06322654,2108.7,2107.6,12.87700983]
[1625173893794,0.06322654,2108.7,2107.8,3.6]
[1625173893896,3.55461,2110.4,2108.0,30.2]
[1625173894045,3.55461,2110.4,2108.1,25.0037]
[1625173894141,7.10823,2109.9,2108.1,28.05195585]
[1625173894240,7.10823,2109.9,2108.2,0.15]
[1625173894440,7.10823,2109.9,2108.2,0.16267]
[1625173894541,7.10823,2109.9,2108.2,2.61847983]
[1625173894668,7.10823,2109.9,2108.3,2.48967585]
[1625173894920,7.10823,2109.9,2108.4,0.16077513]
[1625173895165,15.32473,2109.9,2108.4,0.16077513]
[1625173897014,15.32473,2109.9,2108.4,2.61658496]
[1625173897209,15.32473,2109.9,2108.4,7.62658496]
[1625173897307,8.2165,2109.9,2108.4,53.61766925]
[1625173897412,5.01,2109.9,2108.5,0.19618816]
[1625173897512,26.2178,2110.2,2108.5,0.20277213]
[1625173897660,26.2178,2110.2,2108.5,0.15277213]
[1625173897968,7.10886,2109.7,2108.5,0.15277213]
[1625173898064,7.10886,2109.7,2108.4,53.61766925]
[1625173898065,7.10886,2109.7,2108.4,2.51658496]
[1625173898066,12.11886,2109.7,2108.4,2.51658496]
[1625173898362,12.11886,2109.7,2108.4,0.06077513]
[1625173898363,6.10446173,2109.7,2108.4,0.06077513]
[1625173898461,9.30106173,2109.7,2108.4,0.06077513]
[1625173898616,0.06,2109.6,2108.4,0.06077513]
[1625173898711,9.2826,2109.7,2108.4,0.06077513]
[1625173898863,1.0,2109.1,2108.4,0.06077513]
[1625173904684,4.4673,2109.1,2108.4,0.06077513]
[1625173906606,1.0,2109.1,2108.4,0.06077513]
[1625173906704,1.0,2109.1,2108.4,2.51658496]
[1625173906954,1.0,2109.1,2108.4,7.52658496]
[1625173907054,1.0,2109.1,2108.4,9.80111977]
[1625173907555,1.0,2109.1,2108.4,16.90937977]
[1625173908006,7.1084,2109.8,2108.5,30.2]
[1625173908247,7.1084,2109.8,2108.6,0.16582796]
[1625173908349,7.1084,2109.8,2108.6,0.31582796]
[1625173908649,12.1184,2109.8,2108.6,0.31582796]
[1625173908751,12.1184,2109.8,2108.6,0.15]
[1625173908752,7.1084,2109.8,2108.6,0.15]
[1625173908852,0.16,2109.7,2108.6,0.15]
[1625173908952,4.4371,2109.7,2108.6,0.15]
[1625173909300,0.12,2109.6,2108.6,0.15]
[1625173909953,4.2771,2109.7,2108.6,0.15]
[1625173910443,7.10911,2109.6,2108.6,0.15]
[1625173910947,4.2771,2109.7,2108.6,0.15]
[1625173911295,4.2271,2109.7,2108.6,0.15]
[1625173912948,7.10906,2109.6,2108.6,0.15]
[1625173913147,0.06,2109.5,2108.6,0.15]
[1625173913245,7.10906,2109.6,2108.6,0.15]
[1625173914263,7.10906,2109.6,2108.4,4.73034464]
[1625173914352,12.11906,2109.6,2108.0,9.47831]
[1625173914452,12.15288772,2109.6,2107.7,6.87]
[1625173914556,15.17091068,2109.5,2107.7,6.87]
[1625173914657,2.7,2109.3,2107.7,6.87]
[1625173914808,0.12695228,2109.2,2107.7,6.87]
[1625173914979,0.02183115,2109.2,2107.7,6.87]
[1625173915078,5.03327978,2109.3,2107.7,6.87]
[1625173915180,0.02327978,2109.3,2107.7,9.31536815]
[1625173915278,5.01,2109.3,2107.7,9.31536815]
[1625173915380,5.01,2109.3,2107.7,16.42645815]
[1625173915381,7.11132,2108.8,2107.7,16.42645815]
[1625173915484,12.15662,2108.8,2107.7,16.42645815]
[1625173915735,29.32039754,2108.7,2107.7,0.94339353]
[1625173915833,29.32039754,2108.7,2107.0,10.0805]
[1625173915930,0.2,2108.6,2107.0,10.0805]
[1625173916032,0.10353642,2108.5,2107.0,10.0805]
[1625173916127,0.12861232,2108.5,2107.0,10.0805]
[1625173916377,0.22241613,2108.4,2107.0,10.0805]
[1625173916536,7.11433,2107.8,2107.0,10.0805]
[1625173916628,12.10533269,2107.8,2106.9,0.00984444]
[1625173917311,4.9747,2107.8,2106.9,8.99989351]
[1625173917611,4.9747,2107.8,2106.9,16.11292351]
[1625173917711,7.11294,2108.0,2106.9,16.11292351]
[1625173917866,9.48545,2108.1,2106.9,18.29082546]
[1625173917963,5.01,2108.6,2106.9,18.29082546]
[1625173918063,14.49442,2108.4,2106.9,18.29082546]
[1625173918163,0.08,2108.3,2106.9,26.29082546]
[1625173918264,0.08,2108.3,2106.9,24.18779546]
[1625173918918,7.11274,2108.1,2107.2,7.11235]
[1625173919015,7.11274,2108.1,2107.2,12.12235]
[1625173919471,11.75164,2108.1,2107.2,7.11235]
[1625173919621,16.76164,2108.1,2106.9,8.99989351]
[1625173919720,16.76164,2108.1,2106.9,6.87984444]
[1625173919820,0.14,2108.0,2106.9,0.00984444]
[1625173920023,7.11463,2107.6,2106.9,0.00984444]
[1625173920170,11.50063,2107.6,2106.9,0.00984444]
[1625173920722,4.386,2107.6,2106.9,0.00984444]
[1625173921128,4.0792,2107.7,2106.9,7.12357444]
[1625173921276,5.01,2108.1,2106.9,7.12357444]
[1625173921373,5.01,2107.9,2106.9,7.12357444]
[1625173921476,5.01,2108.1,2106.9,7.12357444]
[1625173921765,5.01,2108.5,2107.0,53.89725936]
[1625173921768,5.01,2108.5,2107.1,0.12296993]
[1625173921963,14.4952,2108.6,2107.1,0.12296993]
[1625173922064,9.4852,2108.6,2107.1,0.12296993]
[1625173922166,17.73436,2108.7,2107.3,9.48261]
[1625173922267,17.73436,2108.7,2107.6,4.2357]
[1625173922413,22.85951,2109.0,2107.6,4.2357]
[1625173922516,22.85951,2109.0,2107.7,0.07172596]
[1625173922864,21.0915,2109.3,2107.7,0.07172596]
[1625173923018,21.0915,2109.3,2107.7,15.07172596]
[1625173923164,21.0915,2109.3,2107.7,24.16002596]
[1625173923269,21.0915,2109.3,2107.9,0.212164]
[1625173924031,10.9583,2109.3,2107.9,0.99413609]
[1625173924133,10.9583,2109.3,2108.4,7.1085]
[1625173924235,10.9583,2109.3,2108.4,11.6313]
[1625173924331,10.9583,2109.3,2108.5,0.06458801]
[1625173924633,25.6361,2109.7,2108.5,0.06458801]
[1625173924832,0.08,2109.6,2108.5,0.06458801]
[1625173925633,0.08,2109.6,2108.4,0.10447304]
[1625173926266,25.6361,2109.7,2108.4,0.10447304]
[1625173926372,25.6361,2109.7,2108.4,3.68057304]
[1625173926464,7.10933,2109.2,2108.4,3.68057304]
[1625173926564,7.10933,2109.2,2108.4,3.5761]
[1625173928761,7.10933,2109.2,2108.3,7.10878]
[1625173930775,25.6361,2109.7,2108.1,48.74645071]
[1625173932074,25.6361,2109.7,2108.1,53.75645071]
[1625173932427,7.10933,2109.2,2108.3,7.10878]
[1625173932525,7.10933,2109.2,2108.3,0.94739387]
[1625173932627,9.47881,2109.5,2108.3,5.95739387]
[1625173932822,9.47881,2109.5,2108.3,0.94739387]
[1625173933566,0.8038,2109.5,2108.6,7.10827]
[1625173933671,11.85003,2110.2,2108.7,15.0]
[1625173933817,14.2012,2110.7,2108.8,0.15]
[1625173933818,11.0012,2110.7,2108.8,0.15]
[1625173933918,11.0012,2110.7,2109.1,3.6]
[1625173934017,11.0012,2110.7,2109.1,7.0475]
[1625173934122,11.0012,2110.7,2109.2,0.15]
[1625173934618,18.10711,2110.7,2109.4,7.10542]
[1625173934764,18.10711,2110.7,2109.5,0.15]
[1625173935562,23.11711,2110.7,2109.5,0.15]
[1625173935815,11.0012,2110.7,2109.5,0.15]
[1625173935915,11.0012,2110.7,2109.6,7.10598]
[1625173936365,11.0012,2110.7,2109.6,11.42658]
[1625173936789,11.0296,2110.8,2109.6,11.42658]
[1625173936895,11.0296,2110.8,2109.7,30.2]
[1625173937041,0.2,2110.9,2110.2,7.10467]
[1625173937140,0.2,2110.9,2110.2,7.17612759]
[1625173938202,0.2,2110.9,2110.2,7.10467]
[1625173943962,0.2,2110.9,2110.2,11.96257]
[1625173944048,0.2,2110.9,2110.2,16.97257]
[1625173944153,0.2,2110.9,2110.3,0.1]
[1625173944301,0.2,2110.9,2110.4,0.15]
[1625173944452,0.2,2110.9,2110.6,7.10239]
[1625173944851,11.0893,2111.9,2110.8,0.22336285]
[1625173945053,11.0893,2111.9,2110.8,0.37336285]
[1625173945354,10.9893,2111.9,2110.8,0.37336285]
[1625173945653,0.1,2111.9,2110.8,3.1785515]
[1625173945901,0.1,2111.9,2110.8,8.96712863]
[1625173946005,0.1,2111.9,2111.3,11.9346]
[1625173946106,0.1,2111.9,2111.4,0.09926198]
[1625173946204,0.1,2111.9,2111.4,0.24926198]
[1625173946352,0.1,2111.9,2111.4,0.25]
[1625173946553,0.1,2111.9,2111.4,0.15]
[1625173948394,0.1,2111.9,2111.6,7.09864]
[1625173949839,0.1,2111.9,2111.7,0.15]
[1625173949936,0.1,2111.9,2111.8,36.21172]
[1625173950087,0.1,2111.9,2111.8,10.71172]
[1625173952047,0.1,2111.9,2111.8,15.72172]
[1625173953637,0.2,2112.9,2111.9,27.7]
[1625173953788,0.2,2112.9,2112.4,7.09689]
[1625173953887,0.1,2112.9,2112.4,10.77448566]
[1625173954289,0.1,2112.9,2112.4,10.70859]
[1625173954387,0.1,2112.9,2112.4,10.79041418]
[1625173954840,0.1,2112.9,2112.4,11.57846864]
[1625173954939,0.1,2112.9,2112.5,0.15]
[1625173955040,0.1,2112.9,2112.7,7.09511]
[1625173958596,0.1,2112.9,2112.6,12.54045]
[1625173958749,0.1,2112.9,2112.3,9.46252]
[1625173958750,14.1,2112.7,2112.3,9.46252]
[1625173958847,14.1,2112.7,2112.1,9.46321]
[1625173958952,14.11652793,2112.7,2112.1,9.46321]
[1625173959096,14.11634583,2112.7,2112.1,9.46321]
[1625173959195,14.1,2112.7,2112.1,9.46321]
[1625173959348,0.1,2112.9,2112.1,9.46321]
[1625173959448,0.1,2112.9,2111.7,10.772]
[1625173959548,0.11680947,2112.9,2111.7,10.772]
[1625173959651,0.1,2112.8,2111.7,10.772]
[1625173959945,0.1,2112.9,2111.7,10.772]
[1625173960201,7.19883,2112.9,2111.8,7.09856]
[1625173960451,0.1,2112.9,2111.8,7.09856]
[1625173961402,0.1,2112.9,2111.7,10.772]
[1625173961500,0.11745279,2112.9,2111.7,10.772]
[1625173961703,0.1,2112.8,2111.7,10.772]
[1625173962104,0.1,2112.9,2111.7,10.772]
[1625173962805,7.19909,2112.9,2111.7,17.87064]
[1625173963006,12.20909,2112.9,2111.7,17.87064]
[1625173963107,7.19909,2112.9,2111.7,17.87064]
[1625173963205,12.20909,2112.9,2111.7,17.87064]
[1625173964948,8.88909,2112.9,2111.7,17.87064]
[1625173965101,0.14,2112.8,2111.7,17.87064]
[1625173965199,8.88909,2112.9,2111.7,17.87064]
[1625173966153,8.88909,2112.9,2111.7,17.82064]
[1625173967711,5.01,2112.9,2111.7,10.722]
[1625173967910,28.01,2113.2,2111.7,10.722]
[1625173968014,28.02917321,2113.2,2111.7,10.722]
[1625173968261,0.06,2113.1,2111.7,10.722]
[1625173968462,0.01247894,2113.0,2111.7,10.722]
[1625173968661,0.01995289,2113.0,2111.7,10.722]
[1625173970357,7.09961,2112.7,2111.7,17.82064]
[1625173970557,12.10961,2112.7,2111.7,17.82064]
[1625173971507,12.12774688,2112.7,2111.7,17.82064]
[1625173971611,12.10961,2112.7,2111.7,17.82064]
[1625173971963,5.01,2112.7,2111.7,10.722]
[1625173972060,63.3016,2113.2,2111.7,10.722]
[1625173972509,0.08,2113.1,2111.7,10.722]
[1625173973161,61.6608,2113.2,2111.7,10.722]
[1625173973365,15.6676,2113.2,2111.7,10.722]
[1625173973465,13.17043517,2113.5,2111.8,0.13382069]
[1625173973565,0.01146966,2113.6,2111.8,0.13382069]
[1625173973566,0.01146966,2113.6,2111.8,7.32046728]
[1625173973703,0.01146966,2113.6,2111.9,15.0]
[1625173973798,0.01146966,2113.6,2111.9,18.64]
[1625173973904,0.01146966,2113.6,2112.1,2.8]
[1625173974052,0.01146966,2113.6,2112.2,0.42612883]
[1625173974151,0.01146966,2113.7,2112.2,4.02612883]
[1625173974249,0.01146966,2113.7,2112.2,7.57339543]
[1625173974349,0.01146966,2113.7,2112.2,18.61968158]
[1625173974499,0.01146966,2113.7,2112.2,30.16678158]
[1625173974601,0.01146966,2113.7,2112.3,2.58914659]
[1625173974751,0.2,2113.9,2112.9,7.09447]
[1625173974854,0.2,2113.9,2113.0,0.0606467]
[1625173974951,0.2,2113.9,2113.0,0.2106467]
[1625173975248,0.2,2113.9,2113.0,0.15]
[1625173975501,0.2,2113.9,2113.0,0.20903723]
[1625173975598,0.2,2113.9,2113.0,0.15]
[1625173975699,0.2,2113.9,2113.0,0.21367456]
[1625173976258,0.2,2113.9,2113.4,7.09403]
[1625173976509,0.2,2113.9,2113.4,7.04403]
[1625173976605,0.2,2113.9,2113.4,12.05403]
[1625173976705,0.2,2113.9,2113.4,7.04403]
[1625173977259,0.2,2113.9,2113.4,4.24151201]
[1625173977559,0.2,2113.9,2113.2,9.45871]
[1625173977811,0.2,2113.9,2113.3,0.15]
[1625173978315,0.2,2113.9,2113.3,2.63627037]
[1625173978517,0.2,2113.9,2113.3,7.64627037]
[1625173978716,0.2,2113.9,2113.6,7.09226]
[1625173979066,0.2,2113.9,2113.6,17.08826]
[1625173980018,0.2,2113.9,2113.6,12.02826]
[1625173980119,0.2,2113.9,2113.3,2.48627037]
[1625173980220,0.2,2113.9,2113.2,9.45871]
[1625173980467,0.2,2113.9,2113.1,0.15]
[1625173981217,0.2,2113.9,2113.1,7.24418]
[1625173981902,0.21146966,2113.9,2113.1,0.15]
[1625173982734,0.2,2113.9,2113.1,0.15]
[1625173983417,7.29462,2113.9,2113.1,0.15]
[1625173983718,0.2,2113.9,2113.1,0.15]
[1625173983867,0.01146966,2113.8,2113.1,0.15]
[1625173984316,0.2,2113.9,2113.1,0.15]
[1625173984931,0.2,2113.9,2112.9,10.24760732]
[1625173985082,0.2,2113.9,2112.9,15.25760732]
[1625173985483,0.2,2113.9,2113.1,7.0942]
[1625173987779,0.21146966,2113.9,2113.1,7.0942]
[1625173989674,0.21146966,2113.9,2113.1,12.1042]
[1625173989977,0.2,2113.9,2113.1,12.1042]
[1625173991887,0.2,2113.9,2113.1,7.0942]
[1625173993132,0.21146966,2113.9,2113.1,7.0942]
[1625173993286,0.12,2113.8,2113.1,7.0942]
[1625173993834,0.12,2113.8,2112.9,10.24760732]
[1625173993981,4.07286666,2113.8,2112.9,10.24760732]
[1625173994081,5.47526666,2113.8,2112.9,10.24760732]
[1625173994233,10.36526666,2113.8,2112.9,10.24760732]
[1625173994331,5.36673632,2113.8,2112.9,10.24760732]
[1625173994430,10.37673632,2113.8,2112.9,9.45898]
[1625173994780,0.01146966,2113.7,2112.9,9.45898]
[1625173997756,0.02798424,2113.7,2112.7,15.8022]
[1625173997855,0.02798424,2113.7,2112.7,10.7922]
[1625173997958,0.2,2113.6,2112.7,10.7922]
[1625173998058,0.2,2113.6,2112.6,11.82082]
[1625173998165,7.29598,2113.6,2112.5,10.8568]
[1625173998310,0.20975891,2113.5,2112.5,10.8568]
[1625173998473,0.2351709,2113.5,2112.5,10.8568]
[1625173998622,0.2351709,2113.5,2112.4,10.6596]
[1625173998730,0.2351709,2113.5,2112.2,2.41875532]
[1625173998830,0.24664056,2113.5,2112.0,10.4564]
[1625173998927,3.5,2113.3,2111.6,10.8451]
[1625173999029,15.25087397,2113.2,2111.6,10.8451]
[1625173999125,20.0,2113.0,2111.6,10.8451]
[1625173999239,7.09983,2112.5,2111.6,10.8451]
[1625173999376,7.09983,2112.5,2111.1,23.41540591]
[1625173999377,7.09983,2112.5,2111.1,20.7843]
[1625173999378,0.05721254,2112.4,2111.1,20.7843]
[1625173999574,0.2844152,2112.4,2111.1,20.7843]
[1625173999672,0.2844152,2112.4,2111.1,10.4352]
[1625173999774,0.2844152,2112.4,2110.8,10.0221]
[1625174000023,0.08627718,2112.2,2110.8,10.0221]
[1625174000175,0.11119178,2112.2,2110.6,21.1056]
[1625174000282,9.47066,2111.7,2110.4,7.10287]
[1625174000376,0.02111558,2111.6,2110.4,7.10287]
[1625174000528,0.02111558,2111.6,2110.3,11.8440394]
[1625174000529,0.02111558,2111.6,2110.3,0.0101294]
[1625174000703,41.03837531,2111.7,2110.3,0.0101294]
[1625174000704,0.07396145,2111.4,2110.3,0.0101294]
[1625174001199,0.18,2111.3,2110.3,0.0101294]
[1625174001294,0.03578136,2111.2,2110.3,0.0101294]
[1625174001445,3.65018136,2111.2,2110.3,0.0101294]
[1625174001599,15.2,2111.1,2110.3,0.0101294]
[1625174001698,15.22160467,2111.1,2110.3,0.0101294]
[1625174001852,7.10603,2110.9,2110.3,0.0101294]
[1625174001999,23.20748233,2110.9,2110.3,0.0101294]
[1625174002148,28.20023,2110.9,2110.3,0.0101294]
[1625174002249,28.21668076,2110.9,2110.3,0.0101294]
[1625174002452,0.18,2110.8,2110.3,0.0101294]
[1625174002796,0.1,2110.7,2110.3,0.0101294]
[1625174002944,4.4729,2110.7,2110.3,0.0101294]
[1625174003091,24.4829,2110.7,2110.3,0.0101294]
[1625174003645,24.4829,2110.7,2109.4,7.10661]
[1625174003646,30.2,2110.6,2109.4,7.10661]
[1625174003746,0.08432394,2110.5,2109.3,10.2936]
[1625174004098,0.22432394,2110.5,2109.1,12.18999]
[1625174004296,0.08432394,2110.5,2109.1,12.18999]
[1625174004748,0.08432394,2110.5,2109.1,0.35]
[1625174004946,7.19171394,2110.5,2109.1,0.35]
[1625174005046,12.20171394,2110.5,2109.1,0.35]
[1625174006038,5.01,2110.5,2109.5,7.10714]
[1625174006186,5.03509177,2111.0,2109.5,10.38034]
[1625174006286,5.01,2111.0,2109.5,15.39034]
[1625174006385,15.0,2111.2,2109.5,15.39034]
[1625174006639,15.0,2111.2,2109.5,16.17603343]
[1625174006782,11.99524,2111.7,2109.5,18.46541035]
[1625174006881,11.99524,2111.7,2109.6,0.07264532]
[1625174006983,11.99524,2111.7,2109.5,18.46541035]
[1625174007083,11.99524,2111.7,2109.6,0.06131882]
[1625174007185,15.0,2111.6,2109.5,18.46541035]
[1625174007432,18.2,2111.6,2109.5,18.46541035]
[1625174007535,17.5232,2111.4,2110.1,7.10482]
[1625174007634,17.5232,2111.4,2110.1,10.99112]
[1625174008389,22.5332,2111.4,2110.1,10.99112]
[1625174008586,22.5332,2111.4,2110.1,3.8863]
[1625174008689,22.5332,2111.4,2110.1,8.8963]
[1625174008790,15.4282,2111.4,2110.1,3.8863]
[1625174009944,22.5332,2111.4,2110.1,3.8863]
[1625174012257,22.5332,2111.4,2110.1,10.99041]
[1625174012405,17.5232,2111.4,2110.1,16.00041]
[1625174012503,17.5232,2111.4,2110.1,18.43978692]
[1625174013103,10.4182,2111.4,2110.1,18.43978692]
[1625174013204,10.4182,2111.4,2110.2,0.09098616]
[1625174013307,10.4182,2111.4,2110.4,7.10315]
[1625174013406,10.30323,2111.6,2110.4,7.10315]
[1625174013558,10.30323,2111.6,2110.5,0.07326974]
[1625174013658,10.30323,2111.6,2110.4,7.10315]
[1625174013904,10.30323,2111.6,2110.4,12.11315]
[1625174014338,7.10323,2111.6,2110.4,12.11315]
[1625174014894,7.10323,2111.6,2110.4,20.11315]
[1625174014996,10.8631,2111.9,2110.4,13.16]
[1625174015147,21.95423,2112.1,2110.5,0.06257769]
[1625174015344,21.95423,2112.1,2110.6,0.15]
[1625174015443,21.95423,2112.1,2110.7,0.12865154]
[1625174015647,11.84393,2112.1,2110.7,0.27865154]
[1625174015745,2.9,2112.4,2110.7,0.27865154]
[1625174016293,15.5286,2112.2,2110.7,0.27865154]
[1625174017282,16.0151277,2112.2,2110.7,0.27865154]
[1625174017483,16.0151277,2112.2,2110.9,7.101]
[1625174017484,23.1159777,2112.2,2110.9,7.101]
[1625174017581,23.1159777,2112.2,2110.9,12.111]
[1625174017731,23.1159777,2112.2,2111.0,0.15]
[1625174018332,0.5365277,2112.1,2111.0,0.15]
[1625174018896,7.6377077,2112.1,2111.0,0.15]
[1625174019095,12.6477077,2112.1,2111.0,0.15]
[1625174021194,12.11118,2112.1,2111.0,0.15]
[1625174026645,12.11118,2112.1,2111.0,7.25109]
[1625174026844,12.11118,2112.1,2111.0,12.26109]
[1625174028935,12.11118,2112.1,2111.0,7.25109]
[1625174029336,12.11118,2112.1,2111.0,12.26109]
[1625174030650,5.01,2112.1,2111.0,12.32714631]
[1625174030847,8.01,2112.5,2111.0,12.32714631]
[1625174030946,3.0,2112.5,2111.0,12.32714631]
[1625174031051,7.10017,2112.3,2111.0,12.32714631]
[1625174031149,7.10017,2112.3,2111.0,12.26109]
[1625174031299,12.11017,2112.3,2111.0,12.26109]
[1625174031397,7.10017,2112.3,2111.0,12.26109]
[1625174031500,12.11017,2112.3,2111.0,12.26109]
[1625174031651,7.10017,2112.3,2111.0,12.26109]
[1625174031799,12.11017,2112.3,2111.0,12.26109]
[1625174031897,7.10017,2112.3,2111.0,12.26109]
[1625174031996,14.11017,2112.3,2111.0,12.26109]
[1625174032099,7.01,2112.3,2111.0,12.26109]
[1625174032234,7.10082,2112.1,2111.0,12.26109]
[1625174032479,12.11082,2112.1,2111.0,12.26109]
[1625174032583,7.10082,2112.1,2111.0,12.26109]
[1625174033530,2.0,2112.0,2111.0,12.26109]
[1625174033931,2.0,2112.0,2111.0,7.25109]
[1625174034903,7.10142,2111.9,2111.0,7.25109]
[1625174037147,2.0,2112.0,2111.0,7.25109]
[1625174038449,9.10097,2112.0,2111.0,7.25109]
[1625174040596,11.10097,2112.0,2111.0,7.25109]
[1625174040696,11.11899328,2112.0,2111.0,7.25109]
[1625174041753,4.0,2112.0,2111.0,0.15]
[1625174042639,2.0,2112.0,2111.0,0.15]
[1625174042742,2.0,2112.0,2111.0,4.7862334]
[1625174042940,2.0,2112.0,2111.0,16.97348502]
[1625174043046,2.0,2112.0,2111.2,0.16301413]
[1625174043141,2.0,2112.0,2111.2,4.44611413]
[1625174043250,2.0,2112.0,2111.2,5.2373801]
[1625174043347,2.0,2112.0,2111.3,0.15]
[1625174043451,2.0,2112.0,2111.3,4.87722027]
[1625174044402,2.0,2112.0,2111.6,7.09825]
[1625174044603,2.0,2112.0,2111.6,7.24825]
[1625174046098,2.0,2112.0,2111.6,0.15]
[1625174048449,9.9473,2112.6,2111.6,7.24825]
[1625174048598,7.29776,2112.9,2111.7,0.1]
[1625174048698,7.29776,2112.9,2111.8,0.06550244]
[1625174048798,7.29776,2112.9,2111.8,0.15]
[1625174049899,7.29776,2112.9,2112.3,7.09758]
[1625174050050,7.29776,2112.9,2112.3,11.86878]
[1625174050222,0.2,2112.9,2112.3,11.86878]
[1625174050655,0.2,2112.9,2112.3,11.9403532]
[1625174051306,0.2,2112.9,2112.4,0.15]
[1625174051559,0.2,2112.9,2112.6,7.09551]
[1625174053054,0.01146966,2113.8,2112.7,26.4]
[1625174053208,9.47217966,2113.8,2112.9,7.09504]
[1625174053305,0.01146966,2113.8,2113.0,0.19239843]
[1625174053759,0.21146966,2113.9,2113.0,0.19239843]
[1625174053956,0.12,2113.8,2113.0,0.19239843]
[1625174054154,0.21146966,2113.9,2113.0,0.19239843]
[1625174054259,7.09541,2113.7,2113.0,0.19239843]
[1625174054357,6.99541,2113.7,2112.9,4.3673]
[1625174054708,0.01146966,2113.6,2112.9,4.3673]
[1625174055456,0.01146966,2113.6,2112.8,9.45981]
[1625174055554,7.09576,2113.6,2112.8,9.45981]
[1625174055902,0.06,2113.5,2112.8,9.45981]
[1625174056102,0.07146966,2113.5,2112.8,9.45981]
[1625174056605,0.01146966,2113.5,2112.8,9.45981]
[1625174058646,0.01146966,2113.7,2112.8,9.45981]
[1625174058747,0.01146966,2113.7,2112.8,12.67131]
[1625174059219,0.04,2113.6,2112.8,12.67131]
[1625174059420,6.87,2113.7,2112.8,12.67131]
[1625174059922,0.01146966,2113.6,2112.8,12.67131]
[1625174060624,7.30649966,2113.9,2112.8,12.67131]
[1625174060775,0.06,2113.8,2112.8,12.67131]
[1625174061127,0.07146966,2113.8,2112.8,12.67131]
[1625174062799,0.01146966,2113.8,2112.8,12.67131]
[1625174063752,7.10686966,2113.8,2112.8,12.67131]
[1625174064254,0.01146966,2113.7,2112.8,9.45981]
[1625174064405,0.11146966,2113.7,2112.8,9.45981]
[1625174064601,0.01146966,2113.7,2112.8,9.45981]
[1625174065101,7.09636,2113.5,2112.8,9.45981]
[1625174065206,11.54016,2113.5,2112.8,9.45981]
[1625174065603,0.06,2113.4,2112.8,9.45981]
[1625174066357,7.09636,2113.5,2112.8,9.45981]
[1625174069661,7.09636,2113.5,2112.7,9.45997]
[1625174069760,11.94773554,2113.5,2112.7,9.45997]
[1625174069861,0.02396804,2113.4,2112.4,10.2951]
[1625174069962,0.12,2113.4,2112.4,10.2951]
[1625174070804,5.70686966,2113.5,2112.4,10.2951]
[1625174070903,4.83776966,2113.5,2112.4,10.2951]
[1625174071006,7.0969,2113.3,2112.6,7.09654]
[1625174071108,0.01146966,2113.5,2112.4,10.2951]
[1625174071205,9.4622,2113.6,2112.4,10.2951]
[1625174071856,0.01146966,2113.5,2112.4,10.2951]
[1625174072483,7.10778966,2113.5,2112.7,7.09632]
[1625174074255,1.0,2113.0,2112.7,7.09632]
[1625174076013,4.2517,2113.0,2112.7,2e-05]
[1625174076115,4.2517,2113.0,2112.0,11.82476]